[Event "IX Famalicao Open 2022"]
[Site "Vila Nova de Famalicao"]
[Date "2022.07.26"]
[Round "4.5"]
[White "Goncalves, Samuel Jesus P"]
[Black "Akhvlediani, Irakli"]
[Result "0-1"]
[ECO "A58"]
[WhiteElo "1957"]
[BlackElo "2429"]
[Annotator "TA"]
[PlyCount "54"]
[EventDate "2022.07.25"]
[EventType "tourn"]
[EventCountry "POR"]
[SourceTitle "playchess.com"]
[Source "ChessBase"]
[SourceQuality "1"]
[TimeControl "5400+30"]

{[%evp 21,54,51,75,0,0,0,0,0,0,-12,0,-21,-18,-203,-197,-205,-202,-197,-166,-207,-203,-204,-203,-193,-195,-194,-200,-199,-195,-193,-107,-858,-829,-1093,-1070]} 1. d4 {[%emt 0:00:05]} Nf6 {[%emt 0:00:10]} 2. c4 {[%emt 0:00:25][%cal Bc2c4,Bc4b5,Bb5a6][%mdl 32]} c5 {[%emt 0:01:04]} 3. d5 {[%emt 0:01:50]} b5 {[%emt 0:00:48]} 4. cxb5 {[%emt 0:01:03]} a6 {[%emt 0:00:04]} 5. bxa6 {[%emt 0:00:42]} g6 {[%emt 0:00:20]} 6. g3 {[%emt 0:00:09]} Bg7 {[%emt 0:00:31]} 7. Bg2 {[%emt 0:00:15]} d6 {[%emt 0:00:10]} 8. Nc3 {[%emt 0:00:16]} O-O {[%emt 0:00:17]} 9. Nf3 {[%emt 0:03:43]} Bxa6 {[%emt 0:00:00]} 10. Rb1 {[%emt 0:00:51]} Nbd7 {[%emt 0:01:26]} 11. O-O {[%emt 0:03:25]} Nb6 {[%emt 0:08:17]} 12. Re1 {[%emt 0:01:11] A58: Benko/Volga Gambit: Lines with 5 bxa6.} (12. b3 $16) 12... Bc4 $11 {[%emt 0:01:33][%cal Rb6d5]} 13. e4 {[%emt 0:04:46]} Bxa2 {[%emt 0:00:52]} 14. Nxa2 {[%emt 0:02:05] The position is equal.} Rxa2 {[%emt 0:00:00]} 15. Bf1 {[%emt 0:02:57]} Qc7 {[%emt 0:07:58] [#]} 16. b4 $146 {[%emt 0:11:37]} ({Predecessor:} 16. b3 Ng4 17. Re2 Rfa8 18. Bb2 Nd7 19. Bxg7 Kxg7 20. h3 Nge5 21. Nxe5 Nxe5 22. Kg2 {0-1 (47) Cazzaniga,W (2104)-Schacher,G (2258) Arco 2005}) 16... c4 {[%emt 0:18:55][%cal Bc5c4,Bc4c3,Bc3c2][%mdl 32]} 17. Be3 $2 {[%emt 0:05:54]} (17. Rb2 $11 {and White stays safe.} Rxb2 18. Bxb2) 17... Nxe4 $19 {[%emt 0:07:56] Threatens to win with ...Nc3.} 18. Bxb6 {[%emt 0:02:11]} Qxb6 {[%emt 0:00:07]} 19. Rxe4 {[%emt 0:00:32]} Qxf2+ {[%emt 0:00:07]} 20. Kh1 {[%emt 0:00:15]} Rc8 {[%emt 0:02:01][%mdl 1024] Strongly threatening ...c3. Black has strong compensation.} (20... Ra3 21. Ng1 $16 (21. Rf4 Bh6 $11)) 21. Be2 {[%emt 0:08:05]} (21. Rxe7 $2 c3 22. Rc1 Bh6 $19) 21... c3 $1 $40 {[%emt 0:02:55][%mdl 128] ( -> ...c2). Black is out for blood.} 22. Rc1 {[%emt 0:06:40]} c2 {[%emt 0:25:44]} 23. Qe1 {[%emt 0:01:00]} Qa7 {[%emt 0:00:25]} ({Weaker is} 23... Qxe1+ 24. Nxe1 Ra1 25. Rxa1 (25. Nd3 Rb1 $17) 25... Bxa1 26. Nxc2 Rxc2 27. Rxe7 $15) 24. Rc4 {[%emt 0:07:41] [#]} Rxc4 {[%emt 0:01:02]} 25. Bxc4 {[%emt 0:00:06]} Ra1 {[%emt 0:02:40]} (25... Qa3 $19 26. Nd2 (26. Bxa2 {is a self mate.} Qxf3+ 27. Kg1 Bd4+) 26... Bb2 27. Rxc2 Ra1) 26. Bd3 $2 {[%emt 0:04:13][%mdl 8192] [#]} (26. Nd2 $17) 26... Qa3 $1 {[%emt 0:00:28][%csl LRc1,LRd3]} 27. Rxa1 {[%emt 0:01:19]} Bxa1 {[%emt 0:00:09] Weighted Error Value: White=1.00/Black=0.06 (flawless)} 0-1

[Event "IX Famalicao Open 2022"]
[Site "Vila Nova de Famalicao"]
[Date "2022.07.26"]
[Round "4.6"]
[White "Martinez Duany, Lelys Stanley"]
[Black "Marques, Ricardo Taborda Trig"]
[Result "1-0"]
[ECO "B13"]
[WhiteElo "2497"]
[BlackElo "1991"]
[Annotator "TA"]
[PlyCount "88"]
[EventDate "2022.07.25"]
[EventType "tourn"]
[EventCountry "POR"]
[SourceTitle "playchess.com"]
[Source "ChessBase"]
[SourceQuality "1"]
[TimeControl "5400+30"]

{[%evp 16,88,29,10,58,54,46,41,53,49,65,53,76,99,97,44,42,36,33,34,32,39,53,53,60,17,79,62,143,142,166,161,189,157,190,156,202,195,210,198,199,179,209,126,125,96,193,189,252,229,237,222,262,264,333,323,315,317,308,256,510,466,854,838,1262,883,1493,1507,1401,877,29976,29978,29976,29976,5521]} 1. e4 c6 2. d4 d5 3. exd5 cxd5 4. Bd3 Nc6 5. c3 Nf6 6. Bf4 g6 7. h3 Bg7 8. Nf3 {8.Nd2 is not played anymore.} O-O 9. Nbd2 Bf5 {B13: Caro-Kann: Exchange Variation and Panov-Botvinnik Attack.} (9... Nh5 $11 {should be considered.} 10. Bh2 Bh6) 10. Bxf5 $14 gxf5 11. g4 Qd7 {White is slightly better.} 12. Ne5 Nxe5 13. Bxe5 Ne4 14. Bxg7 Kxg7 15. gxf5 (15. Qf3 $16) 15... Qxf5 {[%csl Ge4][%cal Rf5f2] [#]} 16. Qg4+ Qxg4 17. hxg4 {[#]} f5 $146 ({Predecessor:} 17... Nxd2 18. Kxd2 f5 19. Rae1 Rae8 20. g5 e5 21. Rxe5 Rxe5 22. dxe5 f4 23. Kd3 Rf5 {1-0 (32) Kaynar,M (1555)-Ilbay,H (1437) Antalya 2020}) 18. Rg1 Kh8 19. g5 Rg8 20. f4 Rg6 (20... h6 $11 {keeps the balance.}) 21. Nf3 Rb6 (21... Re6 $14) 22. O-O-O $16 a5 23. Ne5 Kg7 24. Rd3 Rh8 25. Rh3 Rd6 (25... a4 $16 {keeps fighting.} 26. a3 Re6) 26. a4 $18 Re6 27. Rg2 Nd6 28. Rgh2 Nc4 29. Rh6 Rxh6 30. Rxh6 $16 {[%mdl 4096] Endgame And now Nxc4 would win. KRN-KRN} Nd6 (30... Nxe5 $16 31. fxe5 (31. dxe5 Rc8 $11) 31... Rb8) 31. Kc2 $18 Rc8 (31... Rd8 {was called for.} 32. Re6 Nc8) 32. Kd3 Rc7 33. b3 {[%cal Bb2b3,Bb3c4][%mdl 32]} b6 34. c4 dxc4+ 35. bxc4 ({But not} 35. Nxc4 Rb7 36. Nxd6 exd6) 35... Kg8 36. Rh2 Kg7 37. Rb2 Nc8 (37... Rb7 38. Rh2 Ne4) 38. Rb5 e6 (38... h6 $142 39. gxh6+ Kxh6) 39. c5 bxc5 40. Rxc5 Rxc5 41. dxc5 {[%cal Bd4c5,Bc5c6,Bc6c7][%mdl 32]} Ne7 42. c6 {[#] White wants to mate with c7.} Kf8 43. c7 Nc8 44. Kd4 Ke7 {Weighted Error Value: White=0.13 (very precise) /Black=0.54} 1-0

[Event "IX Famalicao Open 2022"]
[Site "Vila Nova de Famalicao"]
[Date "2022.07.26"]
[Round "4.7"]
[White "Ribeiro, Rodrigo"]
[Black "Spraggett, Kevin"]
[Result "0-1"]
[ECO "A53"]
[WhiteElo "1903"]
[BlackElo "2487"]
[Annotator "TA"]
[PlyCount "43"]
[EventDate "2022.07.25"]
[EventType "tourn"]
[EventCountry "POR"]
[SourceTitle "playchess.com"]
[Source "ChessBase"]
[SourceQuality "1"]
[TimeControl "5400+30"]

{[%evp 15,43,53,56,43,58,-97,-70,-127,-130,-184,-25,-43,-42,-27,-21,-45,-32,-38,458,20,27,-33,-20,-117,-96,-82,-88,-127,-93,-221]} 1. d4 Nf6 2. c4 d6 3. Nc3 Nbd7 4. e4 e5 5. d5 g6 6. Bd3 Bg7 7. Nge2 O-O 8. O-O Nh5 9. Rb1 {E70: King's Indian: Miscellaneous lines with 4 e4, including 5 Nge2 and 5 Bd3 0-0 6 Nge2.} f5 {[#]} 10. f4 $146 {[#]} (10. exf5 $14 gxf5 11. Bc2) ({Predecessor:} 10. exf5 gxf5 11. Ng3 Nxg3 12. fxg3 e4 13. Bc2 a5 14. Be3 Ne5 15. c5 Nc4 16. Bf4 dxc5 {0-1 (35) Cardin,G-Luo,Z (1991) Montreal 2012}) 10... exf4 11. exf5 ({White should try} 11. Nxf4 $15 Nxf4 12. Bxf4) 11... Ne5 $17 12. fxg6 (12. Bc2 $17) 12... Nxd3 $2 (12... hxg6 $19 {...f3 is the strong threat.} 13. Nd4 c5 14. dxc6 Qb6) 13. gxh7+ $11 Kh8 {[#] Threatens to win with ...Bf5.} 14. Qxd3 Bf5 15. Qf3 Bxb1 {Chess con chili. A strong pair of Bishops.} 16. Qxh5 Qc8 $2 {[%mdl 8192]} 17. Qf3 $2 ({White has to play} 17. Nxb1 $18 Qf5 18. Qxf5 Rxf5 19. Nd2) 17... Bxh7 18. Bxf4 (18. Nb5 $11) 18... a6 $15 {[%cal Ba7a6,Ba6b5][%mdl 32]} 19. g4 {Prevents Qf5.} (19. Ne4 $11) 19... b5 $17 {Black is better.} 20. cxb5 axb5 21. a3 Rb8 {[%mdl 1024] Black has strong compensation.} 22. Nc1 {Weighted Error Value: White=0.85/Black=0.69} (22. h3 $17) 0-1

[Event "IX Famalicao Open 2022"]
[Site "Vila Nova de Famalicao"]
[Date "2022.07.26"]
[Round "4.8"]
[White "Rodriguez Lopez, Rafael"]
[Black "Andrade, Ricardo Sarmento"]
[Result "1/2-1/2"]
[ECO "C07"]
[WhiteElo "2172"]
[BlackElo "1862"]
[Annotator "TA"]
[PlyCount "81"]
[EventDate "2022.07.25"]
[EventType "tourn"]
[EventCountry "POR"]
[SourceTitle "playchess.com"]
[Source "ChessBase"]
[SourceQuality "1"]
[TimeControl "5400+30"]

{[%evp 14,81,14,12,16,0,29,22,77,61,56,67,125,124,97,100,179,19,10,0,0,0,0,0,0,0,0,0,0,0,0,8,66,68,116,87,167,122,127,126,126,86,62,65,250,268,280,278,272,270,265,248,243,221,252,246,253,244,222,160,173,136,167,174,201,179,214,194,140,189]} 1. e4 e6 2. d4 d5 3. Nd2 c5 4. Ngf3 cxd4 5. Nxd4 Nc6 6. Bb5 Bd7 7. Nxc6 bxc6 8. Bd3 Bd6 {C07: French Tarrasch: 3...c5, 4 Ngf3 and 4 exd5 Qxd5.} 9. Nf3 Qb8 10. Qe2 Bf4 {[#]} (10... Ne7 $11) 11. Bxf4 $146 ({Predecessor:} 11. O-O Ne7 12. c4 O-O 13. e5 Bxc1 14. Raxc1 h6 15. h4 c5 16. cxd5 exd5 17. Rxc5 {1-0 (32) Hunt,H (2440)-Rogers,J (2340) England 2018}) 11... Qxf4 12. O-O Ne7 (12... Rb8 $14) 13. exd5 $1 $16 cxd5 {[#]} 14. Ne5 $1 Bc6 {[#]} (14... Ng6 $16 15. Nxd7 Kxd7) 15. Bb5 $2 (15. g3 $1 $18 {[%cal Rg3f4]} Qb4 16. c3) 15... Rc8 $1 $11 (15... Bxb5 16. Qxb5+ Kf8 17. Rae1 $16) 16. Bxc6+ Nxc6 17. Qa6 {[%csl LRc6,LRc8]} Rc7 18. Nxc6 Qd6 19. Nb8 Qb4 20. c4 dxc4 21. Rad1 {Black must now prevent Nc6.} Qxb8 22. Qa4+ Ke7 (22... Kf8 $11) 23. Qa3+ $14 (23. Qa6 Qb4 24. a3 Qb6 25. Qxb6 axb6 $17) 23... Ke8 (23... Kf6 $14 {might be stronger.}) 24. Rd6 $36 {[%mdl 2048] White is on the roll.} Rd7 (24... Qc8 $16) 25. Rxd7 Kxd7 $18 {[%mdl 4096] Endgame KQR-KQR} 26. Rd1+ Kc8 27. Qf3 Qb7 28. Qg4 {White is more active.} Kb8 $2 {A mistake that costs the game.} ({Weaker is} 28... Qxb2 29. Qxc4+ Kb8 30. Qf4+ (30. Rc1 Ka8 $11) 30... Ka8 31. Qxf7 $16) ({Better is} 28... Rd8 $14) 29. Qxg7 Rc8 30. h4 ({Much less strong is} 30. Qxh7 $6 f5 31. Qxb7+ Kxb7 $16) 30... h5 31. Qe5+ Ka8 32. Rd2 c3 33. bxc3 Qb1+ 34. Kh2 Qb8 35. Qxb8+ Kxb8 {KR-KR. White is clearly better.} 36. Rd3 Kc7 37. Rd4 {And now Rc4+ would win.} Rg8 38. f3 f5 39. g4 fxg4 40. fxg4 hxg4 (40... Rxg4 $2 41. Rxg4 hxg4 42. h5 $18) (40... e5 $18 41. Ra4 (41. Rc4+ Kd6 $16) 41... hxg4) 41. Kg3 {Weighted Error Value: White=0.17 (very precise) /Black=0.26 (precise)} 1/2-1/2

[Event "IX Famalicao Open 2022"]
[Site "Vila Nova de Famalicao"]
[Date "2022.07.26"]
[Round "4.9"]
[White "Petkov, Vladimir"]
[Black "Afonso, Joao Pedro"]
[Result "1-0"]
[ECO "A06"]
[WhiteElo "2470"]
[BlackElo "1653"]
[Annotator "TA"]
[PlyCount "47"]
[EventDate "2022.07.25"]
[EventType "tourn"]
[EventCountry "POR"]
[SourceTitle "playchess.com"]
[Source "ChessBase"]
[SourceQuality "1"]
[TimeControl "5400+30"]

{[%evp 9,47,18,8,0,4,0,191,185,166,152,224,204,328,340,340,339,360,355,351,361,381,356,344,330,324,304,303,315,437,341,307,291,417,412,504,510,489,495,533,466]} 1. Nf3 {[%emt 0:02:49]} d5 {[%emt 0:00:07]} 2. g3 {[%emt 0:00:42]} Nc6 {[%emt 0:00:06]} 3. d4 {[%emt 0:00:12]} Bg4 {[%emt 0:00:04]} 4. Bg2 {[%emt 0:00:40]} Qd7 {[%emt 0:00:03]} 5. c3 {[%emt 0:00:07]} Bh3 {[%emt 0:00:13]} 6. Bxh3 {[%emt 0:00:28] D02: 1 d4 d5 2 Nf3 sidelines, including 2...Nf6 3 g3 and 2...Nf6 3 Bf4.} Qxh3 {[%emt 0:00:05]} 7. Qa4 {[%emt 0:00:06] [#]} O-O-O $146 {[%emt 0:01:57] [#]} (7... e6 $11 {and Black is okay.}) ({Predecessor:} 7... Qd7 8. c4 Nf6 9. cxd5 Nxd5 10. O-O Nb6 11. Qc2 g6 12. Rd1 Bg7 13. Nc3 O-O {½-½ (41) Kortschnoj,V (2600)-Murey,J (2500) Meudon 1983}) 8. b4 $1 $18 {[%emt 0:00:14][%cal Bb2b4,Bb4b5][%mdl 32] White is clearly better.} a6 {[%emt 0:08:57][%cal Oe7e5]} 9. b5 {[%emt 0:01:56]} Nb8 {[%emt 0:02:09]} (9... axb5 $16 10. Qa8+ Kd7 11. Qxb7 e6) 10. Na3 {[%emt 0:04:12]} Qd7 {[%emt 0:07:51]} (10... f6 $142 11. Rb1 Qe6) 11. Ne5 {[%emt 0:07:01][%csl LRd7,LRf7]} Qe8 {[%emt 0:00:17]} 12. Rb1 {[%emt 0:00:52][%cal Ob5a6] [#] And now bxa6! would win.} Rd6 {[%emt 0:11:34]} 13. c4 {[%emt 0:15:08][%cal Bc3c4,Bc4c5][%mdl 32] Black must now prevent c5.} f6 {[%emt 0:01:32]} 14. Nd3 {[%emt 0:00:30]} e5 15. c5 {[%emt 0:08:04]} Re6 {[%emt 0:19:12]} 16. Qb3 {[%emt 0:07:38]} a5 {[%emt 0:10:10]} 17. Qxd5 {[%emt 0:03:39]} exd4 {[%emt 0:00:30]} 18. O-O {[%emt 0:00:14]} Qd7 {[%emt 0:01:47]} 19. Qf3 {[%emt 0:01:49] Hoping for Nc4.} Ne7 {[%emt 0:02:34]} 20. c6 {[%emt 0:05:16]} Nexc6 {[%emt 0:02:11]} (20... bxc6 $142 21. Nc5 Qd6) 21. bxc6 {[%emt 0:00:20]} Nxc6 {[%emt 0:00:08]} 22. Nc4 {[%emt 0:02:27] White is clearly winning.} g5 {[%emt 0:02:25]} 23. Bd2 {[%emt 0:01:32]} a4 {[%emt 0:01:14]} 24. Rfc1 {[%emt 0:00:11] Weighted Error Value: White=0.08 (flawless) /Black=0.50} 1-0

[Event "IX Famalicao Open 2022"]
[Site "Vila Nova de Famalicao"]
[Date "2022.07.26"]
[Round "4.10"]
[White "Jibuti, Nata"]
[Black "Nigmatov, Ortik"]
[Result "0-1"]
[ECO "A48"]
[WhiteElo "1639"]
[BlackElo "2437"]
[Annotator "TA"]
[PlyCount "77"]
[EventDate "2022.07.25"]
[EventType "tourn"]
[EventCountry "POR"]
[SourceTitle "playchess.com"]
[Source "ChessBase"]
[SourceQuality "1"]
[TimeControl "5400+30"]

{[%evp 9,77,-4,6,0,0,7,27,0,41,13,27,0,0,0,0,-13,14,0,0,0,0,3,33,32,56,-24,-15,-47,-43,-47,-35,-99,-112,-163,-159,-168,-110,-112,-97,-111,-108,-131,-130,-127,-119,-128,-124,-125,-100,-100,-101,-94,-95,-96,-96,-95,-85,-86,-109,-122,-124,-195,-183,-193,-171,-201,-172,-323,-279,-241]} 1. d4 {[%emt 0:00:05]} Nf6 {[%emt 0:00:06]} 2. Nf3 {[%emt 0:00:05]} g6 {[%emt 0:00:03]} 3. Bf4 {[%emt 0:00:08]} Bg7 {[%emt 0:00:09]} 4. Nbd2 {[%emt 0:00:09]} O-O {[%emt 0:02:14]} 5. e4 {[%emt 0:00:43]} d6 {[%emt 0:00:05]} 6. Be2 {[%emt 0:00:17] A48: 1 d4 Nf6 2 Nf3 g6: Torre, London and Colle Systems.} Nc6 {[%emt 0:00:33][%cal Oc6d4]} 7. c3 {[%emt 0:00:13]} h6 {[%emt 0:00:53][%cal Oe7e5]} 8. h3 {[%emt 0:00:59] [#] White has an edge.} Nh5 $146 {[%emt 0:00:11]} (8... e5 $5 9. dxe5 Nh5 $11) ({Predecessor:} 8... e5 9. dxe5 Nh5 10. Be3 dxe5 11. g3 Qe7 12. Qc2 Kh7 13. Nh4 Nf4 14. gxf4 exf4 15. Bxf4 Qxh4 16. Bxc7 {½-½ (51) Pedersen,F (2247)-Wantiez,F (2320) Amsterdam 2015}) 9. Bh2 {[%emt 0:06:52]} e5 $1 {[%emt 0:00:27][%cal Re5d4]} 10. dxe5 {[%emt 0:00:50]} dxe5 {[%emt 0:00:09]} 11. O-O {[%emt 0:04:18]} Nf4 {[%emt 0:01:50]} 12. Bc4 {[%emt 0:05:09]} Qf6 {[%emt 0:01:54]} 13. a4 {[%emt 0:03:39]} Rd8 {[%emt 0:01:30]} 14. Qc2 {[%emt 0:01:02]} g5 {[%emt 0:01:03]} 15. Rfe1 {[%emt 0:08:11]} Ne7 {[%emt 0:01:44][%cal Bc6e7,Be7g6,Bg6f4][%mdl 32]} 16. Bxf4 {[%emt 0:05:10]} Qxf4 {[%emt 0:00:50]} 17. Nf1 {[%emt 0:12:12] [#]} ({White should try} 17. Rad1 $14) 17... Bxh3 $1 $11 {[%emt 0:04:01]} 18. gxh3 {[%emt 0:01:14] Hoping for N3h2.} (18. N3h2 Bd7) 18... Qxf3 {[%emt 0:00:10]} 19. Re3 {[%emt 0:00:50]} Qf6 {[%emt 0:01:24]} 20. Nh2 {[%emt 0:01:04]} ({White should play} 20. Ng3 $15) 20... Ng6 $1 $17 {[%emt 0:00:38]} 21. Rf3 {[%emt 0:02:54]} (21. Ng4 $17 {might work better.} Qc6 22. Qb3) 21... Nf4 $19 {[%emt 0:00:13]} 22. Ng4 {[%emt 0:01:15][%cal Bh2g4,Bg4e3,Be3f5][%mdl 32]} Qc6 {[%emt 0:00:50]} (22... Qg6 $1 $19 23. Rg3 Rd7) 23. Ne3 $17 {[%emt 0:05:43]} Qg6 {[%emt 0:03:10]} 24. Kh2 {[%emt 0:04:53]} Rd7 {[%emt 0:01:39]} 25. Nf5 {[%emt 0:10:48]} Rad8 {[%emt 0:01:23] White must now prevent ...Qh5.} 26. Rd1 {[%emt 0:06:10][%cal Of5e7]} Bf8 {[%emt 0:00:14] Against Ne7+} ({Worse is} 26... Rxd1 27. Ne7+ Kh7 28. Nxg6 fxg6 29. Bd5 $15) 27. Rxd7 {[%emt 0:00:35]} Rxd7 {[%emt 0:00:05]} 28. Rg3 {[%emt 0:03:20]} Qh5 {[%emt 0:00:43]} 29. Ne3 {[%emt 0:02:28]} c6 {[%emt 0:02:10]} 30. Ng4 {[%emt 0:02:15]} Bg7 {[%emt 0:00:33][%cal Bf8g7,Bg7f6,Bf6d8,Bd8b6,Bb6a7][%mdl 32] Against Nf6+} 31. Ne3 {[%emt 0:00:36]} Bf6 {[%emt 0:06:30] Black is more active.} 32. b4 {[%emt 0:02:29]} Bd8 {[%emt 0:02:11]} 33. Ng4 {[%emt 0:00:59] [#]} Kg7 $1 {[%emt 0:10:58][%cal Of4h3] Threatens to win with ...Nxh3!} 34. Ne3 {[%emt 0:07:04]} a5 {[%emt 0:01:00]} 35. b5 {[%emt 0:01:02]} (35. Bf1 $17) 35... Bb6 $19 {[%emt 0:01:02]} 36. Nf5+ {[%emt 0:00:36] [#]} Kh7 $1 {[%emt 0:00:33]} 37. bxc6 {[%emt 0:00:33]} bxc6 {[%emt 0:00:02]} 38. Qb2 $2 {[%emt 0:00:44]} (38. Ne3 {was the only chance.}) 38... Ba7 {[%emt 0:00:09] ...Qd1 is the strong threat.} 39. Qc2 {[%emt 0:00:59] Weighted Error Value: White=0.19 (very precise) /Black=0.08 (flawless)} 0-1

[Event "IX Famalicao Open 2022"]
[Site "Vila Nova de Famalicao"]
[Date "2022.07.26"]
[Round "4.11"]
[White "Lopes, Jose Eduardo Santos "]
[Black "Dias, Ivo Rodrigues"]
[Result "0-1"]
[ECO "B12"]
[WhiteElo "1661"]
[BlackElo "2133"]
[Annotator "TA"]
[PlyCount "62"]
[EventDate "2022.07.25"]
[EventType "tourn"]
[EventCountry "POR"]
[SourceTitle "playchess.com"]
[Source "ChessBase"]
[SourceQuality "1"]
[TimeControl "5400+30"]

{[%evp 12,62,4,7,22,24,50,59,84,89,85,67,82,79,93,71,76,56,74,58,59,61,79,52,79,42,45,45,29,42,38,-80,-98,-102,-97,-116,-88,-88,-102,-305,-305,-305,-305,-318,-308,-275,-206,-215,-40,-464,-379,-676,-348]} 1. e4 c6 2. d4 d5 3. e5 Bf5 4. h4 h5 5. Bd3 Bxd3 6. Qxd3 e6 7. Nf3 Qb6 {B12: Caro-Kann: Advance Variation.} 8. O-O c5 9. c4 {[#]} Nc6 $146 {White is slightly better.} ({Predecessor:} 9... dxc4 10. Qxc4 Qc6 11. Bg5 Nd7 12. Nc3 Nb6 13. Qb3 Ne7 14. dxc5 Nd7 15. Rac1 Nf5 {1-0 (25) Kreutz,J (1970)-Mock,P (1855) Berlin 2019}) 10. cxd5 Nb4 11. Qe4 Nxd5 12. Nc3 {[%cal Bb1c3,Bc3a4,Ba4c5][%mdl 32]} Nge7 13. Na4 {[%csl LRb6,LRc5]} Qc6 14. Nxc5 Nf5 15. Nb3 a5 16. Bg5 a4 17. Rfc1 Qb5 18. Nbd2 Bb4 19. Nc4 O-O 20. Ne3 Ndxe3 21. fxe3 (21. Bxe3 $14 {was forced to keep a grip.} Ba5 22. b3) 21... Ng3 $17 22. Qc2 {[#] Strongly threatening Kh2.} Ne2+ 23. Kh2 {Hoping for Qc4.} Nxc1 {Black is more active.} 24. Rxc1 Rfc8 $36 {[%mdl 2048] Keeping White busy.} 25. Qd1 (25. Qxc8+ $17 {was the only defense.} Rxc8 26. Rxc8+ Kh7 27. a3) 25... Rxc1 $19 26. Qxc1 Qc6 27. Qd1 Rc8 {[#] Threatens to win with ...Qc2.} 28. Qd3 Qc2 29. Qb5 Qxb2 ({Better is} 29... Bf8 $19 {White must now prevent ...Qc6.} 30. Bf4 Qf2) 30. Qxa4 {[%mdl 8192]} ({White should play} 30. Qxb7 $15 Qc3 31. d5 exd5 32. Bf4) 30... Bf8 31. Kh3 $2 (31. Qb3 Qxb3 32. axb3) 31... Qc2 {Weighted Error Value: White=0.66/Black=0.26 (precise)} 0-1

[Event "IX Famalicao Open 2022"]
[Site "Vila Nova de Famalicao"]
[Date "2022.07.26"]
[Round "4.12"]
[White "Akshit Kumar J"]
[Black "Albuquerque, Eduardo Ferreira"]
[Result "1-0"]
[ECO "B92"]
[WhiteElo "2103"]
[BlackElo "1828"]
[Annotator "TA"]
[PlyCount "53"]
[EventDate "2022.07.25"]
[EventType "tourn"]
[EventCountry "POR"]
[SourceTitle "playchess.com"]
[Source "ChessBase"]
[SourceQuality "1"]
[TimeControl "5400+30"]

{[%evp 16,53,8,8,22,0,11,-20,0,-39,0,-30,-8,-12,-8,0,0,-5,0,-80,-75,-73,-40,-43,161,140,422,414,481,458,490,508,768,708,694,663,1036,979,1558,1190]} 1. e4 {[%emt 0:01:43]} c5 {[%emt 0:00:28]} 2. Nf3 {[%emt 0:00:19]} d6 {[%emt 0:00:15]} 3. d4 {[%emt 0:00:05]} cxd4 {[%emt 0:00:12]} 4. Nxd4 {[%emt 0:00:02]} Nf6 {[%emt 0:00:19]} 5. Nc3 {[%emt 0:00:02]} a6 {[%emt 0:00:24]} 6. Be2 {[%emt 0:00:06]} e5 7. Nb3 {[%emt 0:00:05]} Be7 {[%emt 0:00:59]} 8. Qd3 {[%emt 0:01:47]} O-O {[%emt 0:03:26]} 9. O-O {[%emt 0:00:47]} b5 {[%emt 0:06:44] B92: Sicilian Najdorf: 6 Be2.} 10. Nd5 {[%emt 0:08:56]} Nxd5 {[%emt 0:03:17] [#]} 11. exd5 $146 {[%emt 0:01:31]} ({Predecessor:} 11. Qxd5 Ra7 12. Be3 Be6 13. Qd2 Rd7 14. f4 exf4 15. Bxf4 Nc6 16. Rfd1 Bf6 17. c3 {0-1 (56) Chen,I (1699)-Zsiltzova Lisenko,L (2282) Khanty-Mansiysk 2010}) 11... f5 {[%emt 0:05:35] The position is equal.} 12. f4 {[%emt 0:06:23]} (12. a4 $5 {[%cal Ra4b5]}) 12... e4 {[%emt 0:04:33]} 13. Qh3 {[%emt 0:05:11]} Bf6 {[%emt 0:04:18]} 14. a4 {[%emt 0:03:25]} b4 {[%emt 0:06:24]} 15. a5 {[%emt 0:01:02]} Qc7 {[%emt 0:01:50]} 16. Bd2 {[%emt 0:14:15]} Bxb2 {[%emt 0:04:34]} 17. Bxb4 {[%emt 0:12:42]} Bxa1 $17 {[%emt 0:01:48]} 18. Rxa1 {[%emt 0:00:14]} Bb7 {[%emt 0:18:49]} 19. c4 {[%emt 0:01:05]} g6 $2 {[%emt 0:14:15]} (19... Nd7 $15 {stays ahead.}) 20. Nd4 $18 {[%emt 0:03:57] [#] Threatens to win with Ne6.} Rf7 $2 {[%emt 0:02:46][%mdl 8192] This costs Black the game.} (20... Bc8 $16) 21. Qa3 {[%emt 0:02:35]} Rf6 {[%emt 0:04:49]} 22. Ne6 {[%emt 0:01:31] White is clearly winning.} Rxe6 {[%emt 0:00:31]} 23. dxe6 {[%emt 0:00:11]} Qe7 {[%emt 0:00:35]} (23... Nc6 $142 24. Bxd6 Qg7) 24. Bxd6 {[%emt 0:01:26]} Qxe6 {[%emt 0:00:18]} 25. Rb1 {[%emt 0:00:22]} Qd7 {[%emt 0:01:57]} 26. c5 {[%emt 0:01:04] [#] Threatening mate with Bc4+.} Nc6 {[%emt 0:00:38]} 27. Qb3+ {[%emt 0:01:58] Weighted Error Value: White=0.21 (precise) /Black=0.63} 1-0